Workbook

Sheet Лист1
B2: Замена блюда
B4: День | C4: Прием пищи | D4: Заменяемое блюдо/ Вариант Замены | F4: Выход,г | G4: Белки,г | H4: Жиры,г | I4: Углеводы,г | J4: ЭЦ,ккал
B5: День 1 (1 неделя) | C5: Горячий завтрак младшие классы (7-11 лет) | D5: Салат из моркови с яблоками | E5: по меню | F5: 60 | G5: 0.64 | H5: 0.10 | I5: 5.11 | J5: 23.94
D6: Котлета домашняя из говядины | F6: 90 | G6: 10.20 | H6: 13.97 | I6: 8.10 | J6: 199.57
D7: Макаронные изделия отварные с маслом сливочным | F7: 150/5 | G7: 5.12 | H7: 4.53 | I7: 31.99 | J7: 189.30
D8: Компот из сухофруктов (75С) | F8: 200 | G8: 0.66 | H8: 0.09 | I8: 22.03 | J8: 92.90
D9: Хлеб ржаной | F9: 30 | G9: 1.98 | H9: 0.81 | I9: 26.73 | J9: 133.65
D10: Итого: | F10: 535 | G10: 18.55 | H10: 19.33 | I10: 85.86 | J10: 615.42 | K10: 25%
D12: Салат из моркови с яблоками | E12: замена | F12: 60 | G12: 0.64 | H12: 0.10 | I12: 5.11 | J12: 23.94
D13: Сосиски отварные | F13: 100 | G13: 10.80 | H13: 13.84 | I13: 0.36 | J13: 201.12
D14: Макаронные изделия отварные с маслом сливочным | F14: 150/5 | G14: 5.12 | H14: 4.53 | I14: 31.99 | J14: 189.30
D15: Компот из сухофруктов (75С) | F15: 200 | G15: 0.66 | H15: 0.09 | I15: 22.03 | J15: 92.90
D16: Хлеб пшеничный | F16: 40 | G16: 3.040 | H16: 0.320 | I16: 19.680 | J16: 94
D17: Итого с заменой на сосиски: | F17: 555 | G17: 20.16 | H17: =H12+H13+H14+H15+H16 -> 18.88 | I17: 79.57 | J17: =J12+J13+J14+J15+J16 -> 601.26 | K17: 25%
B19: День 1 (1 неделя) | C19: Горячий завтрак старшие классы (12лет и старше) | D19: Салат из моркови с яблоками | F19: 100 | G19: 1.06 | H19: 0.17 | I19: 8.52 | J19: 39.90
D20: Котлета домашняя из говядины | E20: по меню | F20: 100 | G20: 11.28 | H20: 16.71 | I20: 9.00 | J20: 221.74
D21: Макаронные изделия отварные с маслом сливочным | F21: 180/5 | G21: 6.83 | H21: 4.43 | I21: 38.37 | J21: 220.56
D22: Компот из сухофруктов (75С) | F22: 200 | G22: 0.34 | H22: 0.17 | I22: 22.84 | J22: 106.40
D23: Хлеб пшеничный | F23: 30 | G23: 2.280 | H23: 0.240 | I23: 14.760 | J23: 71
D24: Хлеб ржаной | F24: 35 | G24: 2.31 | H24: 0.42 | I24: 13.86 | J24: 69.30
D25: Итого: | F25: 580 | G25: =G20+G21+G23+G24 -> 22.70 | H25: =H19+H20+H21+H22+H23+H24 -> 22.14 | I25: =I20+I21+I22+I23+I24 -> 98.83 | J25: =J20+J21+J22+J23+J24 -> 688.50 | K25: 25%
D27: Салат из моркови с яблоками | F27: 100 | G27: 1.06 | H27: 0.17 | I27: 8.52 | J27: 39.90
D28: Сосиски отварные | E28: замена | F28: 100 | G28: 10.80 | H28: 13.84 | I28: 0.36 | J28: 201.12
D29: Макаронные изделия отварные с маслом сливочным | F29: 200/3 | G29: 7.37 | H29: 8.20 | I29: 39.30 | J29: 257.60
D30: Компот из сухофруктов (75С) | F30: 200 | G30: 0.34 | H30: 0.17 | I30: 22.84 | J30: 106.40
D31: Хлеб пшеничный | F31: 30 | G31: 1.520 | H31: 0.160 | I31: 9.840 | J31: 47.000
D32: Хлеб ржаной | F32: 35 | G32: 2.31 | H32: 0.42 | I32: 13.86 | J32: 69.30
D33: Итого с заменой на сосиски: | F33: 598 | G33: =G27+G28+G29+G30+G31+G32 -> 23.40 | H33: =H27+H28+H29+H30+H31+H32 -> 22.96 | I33: =I27+I28+I29+I30+I31+I32 -> 94.72 | J33: 711.32 | K33: 25%
B36: День | C36: Прием пищи | D36: Заменяемое блюдо/ Вариант Замены | E36: по меню | F36: Выход,г | G36: Белки,г | H36: Жиры,г | I36: Углеводы,г | J36: ЭЦ,ккал
B37: День 5 (1 неделя) | C37: Горячий завтрак младшие классы (7-11 лет) | D37: Плоды и ягоды свежие (яблоки) | F37: 100 | G37: 0.40 | H37: 0.40 | I37: 9.80 | J37: 47.00
D38: Сыр порционно | F38: 10 | G38: 2.03 | H38: 2.63 | I38: 0.00 | J38: 34.33
D39: Пельмени мясные отварные с маслом сливочным | F39: 170/5 | G39: 14.04 | H39: 15.87 | I39: 40.82 | J39: 346.25
D40: Чай с сахаром | F40: 190/10 | G40: 0.07 | H40: 0.02 | I40: 10.00 | J40: 40.00
D41: Хлеб пшеничный | F41: 40 | G41: 3.04 | H41: 0.32 | I41: 19.68 | J41: 94.00
D42: Итого: | F42: 525 | G42: =SUM(G37:G41) -> 19.58 | H42: =SUM(H37:H41) -> 19.24 | I42: =SUM(I37:I41) -> 80.30 | J42: =SUM(J37:J41) -> 561.58 | K42: 25%
D44: Плоды и ягоды свежие (яблоки) | E44: замена | F44: 100 | G44: 0.40 | H44: 0.40 | I44: 9.80 | J44: 47.00
D45: Сыр порционно | F45: 10 | G45: 2.03 | H45: 2.63 | I45: 0.00 | J45: 34.33
D46: Тефтели мясные в томатном соусе | F46: 60/40 | G46: 7.16 | H46: 8.32 | I46: 10.96 | J46: 149.91
D47: Каша пшенная вязкая | F47: 150 | G47: 4.18 | H47: 5.01 | I47: 23.94 | J47: 157.50
D48: Чай с сахаром | F48: 190/10 | G48: 0.07 | H48: 0.02 | I48: 10.00 | J48: 40.00
D49: Хлеб пшеничный | F49: 25 | G49: 1.90 | H49: 0.20 | I49: 12.30 | J49: 58.75
D50: Итого: | F50: 585 | G50: =SUM(G44:G49) -> 15.75 | H50: =SUM(H44:H49) -> 16.58 | I50: =SUM(I44:I49) -> 67.01 | J50: =SUM(J44:J49) -> 487.49 | K50: 20%
B52: День | C52: Прием пищи | D52: Заменяемое блюдо/ Вариант Замены | E52: по меню | F52: Выход,г | G52: Белки,г | H52: Жиры,г | I52: Углеводы,г | J52: ЭЦ,ккал
B53: День 5 (1 неделя) | C53: Горячий завтрак старшие классы (12лет и старше) | D53: Плоды и ягоды свежие (яблоки) | F53: 100 | G53: 0.40 | H53: 0.40 | I53: 9.80 | J53: 47.00
D54: Сыр порционно | F54: 10 | G54: 2.03 | H54: 2.63 | I54: 0.00 | J54: 34.33
D55: Пельмени мясные отварные с маслом сливочным | F55: 195/5 | G55: 16.49 | H55: 19.19 | I55: 54.00 | J55: 432.03
D56: Чай с сахаром | F56: 190/10 | G56: 0.07 | H56: 0.02 | I56: 10.00 | J56: 40.00
D57: Хлеб пшеничный | F57: 40 | G57: 3.04 | H57: 0.32 | I57: 19.68 | J57: 94.00
D58: Итого: | F58: 550 | G58: 22.03 | H58: 22.56 | I58: 93.48 | J58: 647.36 | K58: 25%
D60: Плоды и ягоды свежие (яблоки) | E60: замена | F60: 100 | G60: 0.40 | H60: 0.40 | I60: 9.80 | J60: 47.00
D61: Сыр порционно | F61: 10 | G61: 2.03 | H61: 2.63 | I61: 0.00 | J61: 34.33
D62: Тефтели мясные в томатном соусе | F62: 60/40 | G62: 7.16 | H62: 8.32 | I62: 10.96 | J62: 149.91
D63: Каша пшенная вязкая | F63: 180 | G63: 5.02 | H63: 6.01 | I63: 28.73 | J63: 189.00
D64: Чай с сахаром | F64: 190/10 | G64: 0.07 | H64: 0.02 | I64: 10.00 | J64: 40.00
D65: Хлеб пшеничный | F65: 40 | G65: 3.04 | H65: 0.32 | I65: 19.68 | J65: 94.00
D66: Итого: | F66: 630 | G66: =SUM(G60:G65) -> 17.72 | H66: =SUM(H60:H65) -> 17.70 | I66: =SUM(I60:I65) -> 79.18 | J66: =SUM(J60:J65) -> 554.24 | K66: 20%
